bitfinex/quotes_SOLUSD_20250403
["timestamp","ask_amount","ask_price","bid_price","bid_amount"]
[1743717181249,202.178,116.99,116.94,16.84828991]
[1743717181435,0.14216157,116.98,116.94,16.84828991]
[1743717181757,0.42648471,116.98,116.94,16.84828991]
[1743717182252,219.02628991,116.99,116.94,16.84828991]
[1743717183147,83.02628991,116.99,116.94,16.84828991]
[1743717183348,83.02628991,116.99,116.95,8.5506]
[1743717184657,91.57398991,116.99,116.95,8.5506]
[1743717184864,83.02628991,116.99,116.95,8.5506]
[1743717185835,66.178,116.99,116.96,23.16528991]
[1743717186033,66.178,116.99,116.97,16.84828991]
[1743717186242,66.178,116.99,116.96,23.16528991]
[1743717187341,66.178,116.99,116.98,8.5484]
[1743717188459,14.788,116.99,116.98,26.94588991]
[1743717191241,0.0001,116.99,116.98,33.26028991]
[1743717191451,1.5,117.0,116.98,33.26028991]
[1743717191654,1.5,117.0,116.99,24.26828991]
[1743717192352,1.5,117.0,116.99,32.81598991]
[1743717200478,1.5,117.0,116.99,32.83775591]
[1743717208459,51.39,116.99,116.95,8.5506]
[1743717208656,16.84828991,116.96,116.91,16.84828991]
[1743717208851,92.82235964,117.0,116.91,37.5574]
[1743717208852,9.4416,117.0,116.91,37.5574]
[1743717209073,1.5,117.0,116.99,16.84828991]
[1743717209370,1.5,117.0,116.95,24.52828991]
[1743717209573,0.42648471,116.99,116.95,7.68]
[1743717209762,17.27477462,116.99,116.95,7.68]
[1743717210267,0.42648471,116.99,116.95,7.68]
[1743717210659,0.42648471,116.99,116.95,16.2305]
[1743717210855,17.27477462,116.99,116.95,16.2305]
[1743717211268,8.97418471,116.99,116.95,16.2305]
[1743717211574,78.74317462,116.99,116.95,7.68]
[1743717211773,78.74317462,116.99,116.94,8.5508]
[1743717212156,36.84828991,116.98,116.94,8.5508]
[1743717212374,17.27477462,116.97,116.93,8.5518]
[1743717212551,51.39,116.96,116.93,8.5518]
[1743717213371,68.23828991,116.96,116.92,8.5526]
[1743717213673,0.42648471,116.97,116.92,8.5526]
[1743717213674,16.84828991,116.95,116.92,8.5526]
[1743717214173,17.27477462,116.94,116.91,8.5535]
[1743717214554,17.27477462,116.94,116.9,8.5543]
[1743717214778,97.21627462,116.94,116.9,8.5543]
[1743717214978,1.5307,116.93,116.9,8.5543]
[1743717216476,18.37898991,116.93,116.9,8.5543]
[1743717217789,18.37898991,116.93,116.89,8.555]
[1743717219485,18.37898991,116.93,116.89,25.40328991]
[1743717220391,1.5307,116.93,116.89,25.40328991]
[1743717221468,0.42648471,116.92,116.89,8.555]
[1743717223088,0.42648471,116.92,116.89,25.40328991]
[1743717224569,0.42648471,116.92,116.89,46.79088991]
[1743717225990,0.42648471,116.92,116.89,25.40328991]
[1743717226292,0.42648471,116.92,116.89,8.555]
[1743717229184,0.42648471,116.92,116.87,29.9469]
[1743717229392,0.42648471,116.92,116.88,16.84828991]
[1743717229583,17.27477462,116.92,116.87,46.79518991]
[1743717233008,0.42648471,116.92,116.88,16.84828991]
[1743717233182,51.39,116.91,116.88,16.84828991]
[1743717234302,0.42648471,116.92,116.88,16.84828991]
[1743717234504,0.42648471,116.92,116.89,8.555]
[1743717235412,17.27477462,116.92,116.89,8.555]
[1743717236306,0.42648471,116.9,116.89,8.555]
[1743717236696,0.42648471,116.9,116.88,8.5557]
[1743717238820,0.42648471,116.9,116.87,29.9469]
[1743717238994,0.42648471,116.9,116.87,46.79518991]
[1743717244506,51.81648471,116.9,116.87,46.79518991]
[1743717245823,51.81648471,116.9,116.87,29.9469]
[1743717246703,0.42648471,116.87,116.86,8.557]
[1743717246915,68.66477462,116.87,116.83,29.957]
[1743717247221,16.84828991,116.86,116.83,29.957]
[1743717247609,68.66477462,116.87,116.83,29.957]
[1743717247815,36.84828991,116.88,116.83,46.80528991]
[1743717248029,20.0,116.88,116.84,16.84828991]
[1743717248718,36.84828991,116.88,116.83,46.80528991]
[1743717250133,36.84828991,116.88,116.84,16.84828991]
[1743717250443,0.42648471,116.87,116.83,46.80528991]
[1743717252027,68.66477462,116.87,116.83,46.80528991]
[1743717253915,51.81648471,116.87,116.84,16.84828991]
[1743717254230,51.81648471,116.87,116.83,16.84828991]
[1743717254638,51.81648471,116.87,116.8,80.3707]
[1743717254639,51.81648471,116.87,116.84,16.84828991]
[1743717255430,51.81648471,116.87,116.8,115.5789]
[1743717255734,51.81648471,116.87,116.83,16.84828991]
[1743717255932,51.81648471,116.87,116.84,8.5587]
[1743717256833,68.66477462,116.87,116.84,8.5587]
[1743717257923,51.81648471,116.87,116.84,8.5587]
[1743717258234,68.66477462,116.87,116.84,8.5587]
[1743717260036,68.66477462,116.87,116.83,8.5594]
[1743717261839,88.66477462,116.85,116.81,8.5609]
[1743717262023,16.84828991,116.84,116.81,8.5609]
[1743717262443,88.66477462,116.85,116.81,8.5609]
[1743717264147,71.81648471,116.85,116.81,46.81138991]
[1743717264320,51.81648471,116.85,116.81,46.81138991]
[1743717265746,0.42648471,116.85,116.81,46.81138991]
[1743717266417,51.39,116.86,116.82,16.84828991]
[1743717266621,51.39,116.86,116.83,16.84828991]
[1743717266838,0.14216157,116.86,116.83,16.84828991]
[1743717267018,0.14216157,116.86,116.84,16.84828991]
[1743717268246,0.14216157,116.86,116.85,8.5579]
[1743717270349,0.14216157,116.86,116.84,8.5587]
[1743717274149,1.5402,116.89,116.85,16.84828991]
[1743717274450,38.50998991,116.92,116.87,16.84828991]
[1743717274631,0.14216157,116.91,116.88,16.84828991]
[1743717275038,38.50998991,116.92,116.88,16.84828991]
[1743717275239,0.14216157,116.91,116.88,16.84828991]
[1743717275852,0.14216157,116.91,116.89,8.555]
[1743717277150,0.14216157,116.91,116.88,21.3882]
[1743717277555,0.14216157,116.91,116.88,38.23648991]
[1743717278050,57.08163877,116.94,116.89,16.84828991]
[1743717278355,0.14216157,116.93,116.9,16.84828991]
[1743717279657,0.14216157,116.93,116.9,29.94]
[1743717280557,17.13261305,116.95,116.9,46.78828991]
[1743717280753,0.14216157,116.94,116.91,16.84828991]
[1743717281762,0.14216157,116.95,116.92,29.9349]
[1743717283087,23.0837,117.0,116.93,16.84828991]
[1743717283357,0.14216157,116.99,116.95,16.84828991]
[1743717284542,1.5,117.0,116.96,16.84828991]
[1743717285153,1.5,117.0,116.97,29.9222]
[1743717286743,1.5,117.0,116.97,46.77048991]
[1743717287349,1.5,117.0,116.98,24.36828991]
[1743717288649,1.5,117.0,116.98,32.36338991]
[1743717289249,1.5,117.0,116.99,25.39598991]
[1743717291751,1.5,117.0,116.99,8.5477]
[1743717292150,1.5,117.0,116.99,25.39598991]
[1743717296758,1.5,117.0,116.99,8.5477]
[1743717303282,1.5,117.0,116.99,25.39598991]
[1743717306375,0.0001,117.0,116.99,25.39598991]
[1743717309379,21.6344,117.1,117.02,26.0]
[1743717309578,21.6344,117.1,117.06,16.84828991]
[1743717309782,19.27616157,117.09,117.05,16.84828991]
[1743717309978,19.27616157,117.09,117.06,16.84828991]
[1743717310176,19.27616157,117.09,117.05,6.504]
[1743717310177,19.134,117.09,117.08,16.84828991]
[1743717310372,19.134,117.09,117.07,24.38828991]
[1743717310571,19.134,117.09,117.08,8.5411]
[1743717310879,19.134,117.09,117.08,25.38938991]
[1743717311677,19.134,117.09,117.07,32.93008991]
[1743717311882,19.134,117.09,117.07,8.5418]
[1743717312184,19.56048471,117.09,117.08,26.0]
[1743717312573,19.134,117.09,117.08,26.0]
[1743717312878,19.134,117.09,117.08,34.5411]
[1743717313092,19.134,117.09,117.08,26.0]
[1743717313589,19.56048471,117.09,117.08,26.0]
[1743717314679,0.42648471,117.08,117.05,8.5433]
[1743717315770,0.42648471,117.08,117.04,8.5437]
[1743717316069,17.27477462,117.08,117.04,8.5437]
[1743717316271,0.42648471,117.08,117.04,8.5437]
[1743717316663,19.134,117.07,117.04,8.5437]
[1743717318870,0.42648471,117.06,117.04,8.5437]
[1743717319064,0.42648471,117.06,117.03,8.5446]
[1743717319484,51.81648471,117.06,117.03,8.5446]
[1743717319687,0.42648471,117.06,117.03,8.5446]
[1743717325894,0.42648471,117.06,117.02,8.5455]
[1743717326085,0.42648471,117.06,117.02,25.39378991]
[1743717328392,0.42648471,117.06,117.02,8.5455]
[1743717328973,8.5412,117.08,117.04,16.84828991]
[1743717329173,0.14216157,117.08,117.05,16.84828991]
[1743717329498,0.42648471,117.08,117.04,16.84828991]
[1743717330196,0.14216157,117.08,117.05,8.5433]
[1743717330503,0.14216157,117.08,117.05,29.9016]
[1743717331203,0.42648471,117.08,117.05,29.9016]
[1743717332199,0.42648471,117.08,117.03,16.84828991]
[1743717332401,16.84828991,117.09,117.04,16.84828991]
[1743717332704,1.6344,117.1,117.05,16.84828991]
[1743717332887,18.48268991,117.1,117.05,24.42828991]
[1743717333075,1.6344,117.1,117.05,24.42828991]
[1743717333278,18.48268991,117.1,117.05,24.42828991]
[1743717333484,35.98228991,117.09,117.05,7.58]
[1743717334286,19.134,117.09,117.06,8.5426]
[1743717334777,35.98228991,117.09,117.06,8.5426]
[1743717334971,19.134,117.09,117.06,8.5426]
[1743717342007,19.134,117.09,117.06,25.39088991]
[1743717345709,19.134,117.09,117.06,8.5426]
[1743717349482,19.134,117.09,117.06,29.8991]
[1743717350802,19.134,117.09,117.06,46.74738991]
[1743717352818,19.134,117.09,117.08,8.5411]
[1743717354116,19.134,117.09,117.08,25.38938991]
[1743717354292,16.84828991,117.14,117.08,46.74228991]
[1743717354613,16.84828991,117.14,117.09,16.84828991]
[1743717355318,0.42648471,117.13,117.08,46.74228991]
[1743717355497,20.0,117.2,117.13,8.1118]
[1743717355702,20.0,117.2,117.15,16.84828991]
[1743717355913,20.0,117.2,117.17,8.5346]
[1743717356099,0.14216157,117.19,117.17,8.5346]
[1743717356299,36.84828991,117.18,117.11,29.8863]
[1743717356609,0.42648471,117.15,117.11,46.73458991]
[1743717356999,0.42648471,117.15,117.12,16.84828991]
[1743717357719,0.42648471,117.15,117.13,8.5375]
[1743717359419,51.81648471,117.15,117.13,8.5375]
[1743717359719,51.81648471,117.15,117.13,25.38578991]
[1743717360916,51.81648471,117.15,117.12,16.84828991]
[1743717361318,51.39,117.15,117.13,16.84828991]
[1743717362924,51.39,117.15,117.14,8.5367]
[1743717364424,20.0,117.16,117.14,8.5367]
[1743717365531,20.0,117.16,117.14,25.38498991]
[1743717365723,20.0,117.16,117.14,8.5367]
[1743717366124,20.0,117.16,117.14,25.38498991]
[1743717366528,20.0,117.16,117.14,8.5367]
[1743717366932,20.0,117.16,117.14,25.38498991]
[1743717367315,0.14216157,117.19,117.14,29.8786]
[1743717367516,71.39,117.2,117.14,21.3419]
[1743717367807,0.42648471,117.19,117.15,16.84828991]
[1743717368102,0.42648471,117.19,117.16,16.84828991]
[1743717368307,0.14216157,117.19,117.17,16.84828991]
[1743717368535,1.5445,117.23,117.18,16.84828991]
[1743717368736,1.5445,117.23,117.2,16.84828991]
[1743717369314,0.14216157,117.25,117.21,16.84828991]
[1743717369530,0.14216157,117.25,117.22,8.5309]
[1743717369906,16.99045148,117.25,117.22,8.5309]
[1743717370113,16.84828991,117.26,117.22,8.5309]
[1743717370331,8.5267,117.28,117.23,16.84828991]
[1743717370332,0.14216157,117.28,117.23,16.84828991]
[1743717370529,0.14216157,117.28,117.23,16.6795634]
[1743717370932,0.42648471,117.25,117.22,46.5378634]
[1743717371119,0.42648471,117.25,117.22,29.8583]
[1743717371516,0.42648471,117.25,117.22,8.5309]
[1743717371916,17.10604811,117.25,117.22,8.5309]
[1743717372317,0.42648471,117.25,117.22,8.5309]
[1743717372725,19.07613357,117.25,117.22,8.5309]
[1743717372933,0.42648471,117.23,117.22,8.5309]
[1743717373436,16.6795634,117.25,117.22,8.5309]
[1743717373740,0.42648471,117.24,117.22,8.5309]
[1743717373929,172.6795634,117.26,117.22,8.5309]
[1743717374233,0.42648471,117.25,117.22,8.5309]
[1743717374617,0.42648471,117.25,117.22,25.2104634]
[1743717374817,0.42648471,117.25,117.22,8.5309]
[1743717375712,17.10604811,117.25,117.22,8.5309]
[1743717375918,0.42648471,117.23,117.18,29.274]
[1743717376117,0.42648471,117.23,117.19,8.5331]
[1743717376426,36.6795634,117.24,117.19,29.8659]
[1743717376427,20.0,117.24,117.19,29.8659]
[1743717376633,20.0,117.24,117.2,16.6795634]
[1743717377039,20.0,117.24,117.19,29.8659]
[1743717377228,20.0,117.24,117.2,16.6795634]
[1743717377542,20.0,117.24,117.19,29.8659]
[1743717377841,20.0,117.24,117.16,72.547]
[1743717378044,36.6795634,117.24,117.19,16.6795634]
[1743717378921,0.42648471,117.23,117.19,16.6795634]
[1743717379215,0.42648471,117.23,117.17,7.94]
[1743717379530,0.42648471,117.23,117.16,115.2236]
[1743717379531,17.10604811,117.21,117.16,46.5531634]
[1743717379730,17.10604811,117.21,117.16,29.8736]
[1743717379930,17.10604811,117.21,117.16,16.6795634]
[1743717382033,17.10604811,117.21,117.14,80.5425]
[1743717382238,17.10604811,117.21,117.16,16.6795634]
[1743717382923,0.42648471,117.19,117.14,37.8586]
[1743717383118,17.10604811,117.19,117.14,29.8786]
[1743717383442,0.42648471,117.17,117.14,8.5367]
[1743717384038,17.10604811,117.17,117.14,8.5367]
[1743717384238,17.10604811,117.17,117.13,8.5375]
[1743717384544,0.42648471,117.17,117.13,25.2170634]
[1743717385529,2.00808471,117.17,117.13,8.5375]
[1743717385928,18.68764811,117.17,117.13,8.5375]
[1743717386660,18.68764811,117.17,117.06,154.77686036]
[1743717386661,36.6795634,117.14,117.08,16.6795634]
[1743717386953,0.42648471,117.12,117.08,16.6795634]
[1743717387633,0.42648471,117.12,117.08,46.5735634]
[1743717389641,0.42648471,117.12,117.04,29.9042]
[1743717389847,0.42648471,117.12,117.08,25.86547129]
[1743717390647,53.86547129,117.14,117.1,25.86547129]
[1743717390648,20.0,117.14,117.1,25.86547129]
[1743717390857,0.42648471,117.13,117.1,25.86547129]
[1743717391158,0.42648471,117.13,117.09,25.86547129]
[1743717391833,0.42648471,117.13,117.1,8.5397]
[1743717392527,0.42648471,117.13,117.09,25.86547129]
[1743717392528,0.42648471,117.11,117.09,8.54]
[1743717394539,20.0,117.14,117.1,25.86547129]
[1743717394739,0.14216157,117.13,117.11,25.86547129]
[1743717394937,0.42648471,117.13,117.11,25.86547129]
[1743717396561,0.42648471,117.13,117.12,8.5382]
[1743717398972,0.42648471,117.13,117.1,29.8879]
[1743717399140,0.42648471,117.13,117.1,55.75337129]
[1743717400173,0.42648471,117.13,117.1,29.8879]
[1743717411688,0.42648471,117.13,117.1,21.3482]
[1743717414386,0.42648471,117.13,117.1,29.8879]
[1743717422801,0.42648471,117.13,117.1,46.43960442]
[1743717423093,0.42648471,117.13,117.1,29.8879]
[1743717423272,0.42648471,117.13,117.1,46.43960442]
[1743717423589,0.42648471,117.13,117.1,29.8879]
[1743717424791,0.42648471,117.13,117.09,16.55170442]
[1743717425713,0.42648471,117.13,117.08,16.55170442]
[1743717425895,0.42648471,117.13,117.08,46.44570442]
[1743717426197,0.42648471,117.13,117.09,16.55170442]
[1743717426569,0.42648471,117.1,117.08,8.5411]
[1743717426787,0.42648471,117.1,117.05,16.55170442]
[1743717426986,0.42648471,117.1,117.06,16.55170442]
[1743717427187,0.42648471,117.1,117.07,16.55170442]
[1743717427383,0.42648471,117.1,117.06,16.55170442]
[1743717431403,16.97818913,117.1,117.06,16.55170442]
[1743717431894,0.42648471,117.05,116.99,7.6357]
[1743717432079,0.42648471,117.05,117.01,16.55170442]
[1743717435003,0.42648471,117.05,117.02,16.55170442]
[1743717436687,0.42648471,117.05,117.03,8.5448]
[1743717437193,16.97818913,117.05,117.02,8.5451]
[1743717437702,0.42648471,117.05,117.01,16.55170442]
[1743717438493,0.42648471,117.05,117.0,26.0]
[1743717438684,0.42648471,117.05,117.01,16.55170442]
[1743717440999,16.97818913,117.05,117.01,16.55170442]
[1743717441198,26.08648471,117.05,117.01,16.55170442]
[1743717441405,16.97818913,117.05,117.01,16.55170442]
[1743717441798,16.97818913,117.05,116.98,7.6357]
[1743717442098,16.97818913,117.05,117.01,16.55170442]
[1743717442503,0.42648471,117.05,117.01,16.55170442]
[1743717442691,0.42648471,117.05,117.02,8.5455]
[1743717443005,0.42648471,117.05,117.02,25.09720442]
[1743717443709,0.42648471,117.05,117.02,16.55170442]
[1743717443906,0.42648471,117.05,117.01,16.55170442]
[1743717444196,71.81648471,117.03,116.94,72.89651733]
[1743717444379,0.42648471,117.0,116.98,16.55170442]
[1743717444575,20.0,117.01,116.99,16.55170442]
[1743717446302,0.14216157,117.06,117.0,16.55170442]
[1743717446482,0.14216157,117.06,117.03,16.55170442]
[1743717446682,0.14216157,117.06,117.04,8.544]
[1743717447623,0.42648471,117.06,117.04,8.544]
[1743717448290,35.62783799,117.06,117.03,8.5444]
[1743717448496,0.42648471,117.06,117.03,25.09610442]
[1743717448705,0.42648471,117.06,117.04,16.55170442]
[1743717448992,0.14216157,117.09,117.05,16.55170442]
[1743717449294,0.14216157,117.09,117.06,16.55170442]
[1743717449802,0.42648471,117.09,117.07,16.55170442]
[1743717450715,0.42648471,117.09,117.08,8.5411]
[1743717451714,1.6405,117.1,117.08,8.5411]
[1743717451918,0.42648471,117.09,117.08,8.5411]
[1743717456512,0.42648471,117.09,117.03,72.6308]
[1743717456710,0.42648471,117.09,117.06,16.55170442]
[1743717457111,0.42648471,117.09,117.07,16.55170442]
[1743717458419,0.42648471,117.09,117.03,115.3548]
[1743717458914,0.42648471,117.09,117.07,16.55170442]
[1743717459813,1.6405,117.1,117.07,16.55170442]
[1743717460715,1.6405,117.1,117.08,8.5411]
[1743717462116,0.42648471,117.09,117.08,8.5411]
[1743717463816,0.42648471,117.09,117.07,16.55170442]
[1743717464019,0.42648471,117.09,117.07,25.09330442]
[1743717464320,0.42648471,117.09,117.06,25.09390442]
[1743717469219,0.42648471,117.09,117.07,16.55170442]
[1743717469596,0.42648471,117.09,117.06,25.09390442]
[1743717472115,0.42648471,117.09,117.06,46.45040442]
[1743717472722,1.6405,117.1,117.07,16.55170442]
[1743717474223,1.6405,117.1,117.08,8.5411]
[1743717475324,51.39,117.11,117.08,25.09280442]
[1743717475519,51.39,117.11,117.08,46.44570442]
[1743717476320,51.81648471,117.12,117.08,46.44570442]
[1743717476621,51.39,117.12,117.08,29.894]
[1743717476807,51.39,117.12,117.09,16.55170442]
[1743717477212,51.39,117.12,117.08,29.894]
[1743717477411,0.42648471,117.12,117.09,16.55170442]
[1743717478313,0.42648471,117.12,117.1,8.5397]
[1743717479723,1.5268,117.13,117.1,8.5397]
[1743717481821,0.42648471,117.12,117.09,8.54]
[1743717483041,20.42648471,117.12,117.08,25.09250442]
[1743717483347,71.81648471,117.12,117.08,25.09250442]
[1743717483919,71.81648471,117.12,117.08,8.5408]
[1743717484542,165.3868,117.16,117.08,29.8937]
[1743717484703,0.14216157,117.15,117.11,25.09060442]
[1743717485205,0.14216157,117.15,117.12,16.55170442]
[1743717485623,0.42648471,117.15,117.13,16.55170442]
[1743717485832,136.0,117.19,117.13,16.55170442]
[1743717486005,16.69386599,117.19,117.14,16.55170442]
[1743717486203,0.28432314,117.18,117.11,29.8863]
[1743717486426,0.14216157,117.18,117.13,16.55170442]
[1743717486630,16.69386599,117.19,117.14,8.5367]
[1743717487017,25.22706599,117.19,117.14,8.5367]
[1743717487313,0.14216157,117.18,117.14,8.5367]
[1743717487525,0.28432314,117.18,117.14,8.5367]
[1743717488029,0.28432314,117.18,117.14,25.08840442]
[1743717488239,1.5104,117.2,117.17,16.55170442]
[1743717488431,0.14216157,117.21,117.17,16.55170442]
[1743717488432,0.42648471,117.21,117.17,16.55170442]
[1743717488834,0.42648471,117.21,117.12,74.08681768]
[1743717488835,0.14216157,117.21,117.18,25.08550442]
[1743717489033,0.14216157,117.21,117.19,16.55170442]
[1743717489217,1.562,117.23,117.19,16.55170442]
[1743717489416,0.14216157,117.22,117.19,16.55170442]
[1743717489617,0.42648471,117.22,117.19,16.55170442]
[1743717489916,0.14216157,117.22,117.19,16.55170442]
[1743717490116,0.14216157,117.24,117.2,16.55170442]
[1743717490531,21.562,117.26,117.21,16.55170442]
[1743717490739,8.5267,117.28,117.23,25.08160442]
[1743717490740,16.55170442,117.28,117.23,25.08160442]
[1743717490911,0.42648471,117.27,117.23,25.08160442]
[1743717491117,0.14216157,117.28,117.23,25.08160442]
[1743717491435,16.69386599,117.28,117.23,25.08160442]
[1743717491933,0.28432314,117.27,117.23,25.08160442]
[1743717492432,16.69386599,117.28,117.23,25.08160442]
[1743717493035,0.28432314,117.27,117.23,25.08160442]
[1743717493230,0.42648471,117.28,117.23,25.08160442]
[1743717493432,0.42648471,117.28,117.24,16.55170442]
[1743717493618,0.14216157,117.28,117.24,16.55170442]
[1743717494009,0.42648471,117.28,117.24,16.55170442]
[1743717494944,0.42648471,117.28,117.24,25.08050442]
[1743717496127,0.14216157,117.28,117.24,25.08050442]
[1743717496511,8.66876157,117.28,117.24,25.08050442]
[1743717496716,0.14216157,117.28,117.24,25.08050442]
[1743717496941,0.42648471,117.28,117.24,25.08050442]
[1743717498738,18.11370442,117.29,117.24,25.08050442]
[1743717499239,1.562,117.29,117.25,16.55170442]
[1743717500220,0.42648471,117.28,117.24,25.08050442]
[1743717502438,16.55170442,117.3,117.25,16.55170442]
[1743717502748,0.42648471,117.3,117.26,16.55170442]
[1743717503454,1.562,117.31,117.24,103.97931768]
[1743717503650,0.14216157,117.32,117.24,103.97931768]
[1743717503952,16.97818913,117.32,117.28,8.5266]
[1743717504252,25.21756599,117.32,117.28,8.5266]
[1743717504455,0.14216157,117.32,117.28,25.07830442]
[1743717504848,0.42648471,117.32,117.28,25.07830442]
[1743717505054,0.14216157,117.33,117.3,16.55170442]
[1743717505355,4.81489197,117.34,117.31,16.55170442]
[1743717505851,4.81489197,117.34,117.31,25.07550442]
[1743717506053,4.81489197,117.34,117.31,8.5238]
[1743717506433,0.14216157,117.33,117.31,8.5238]
[1743717506624,0.42648471,117.33,117.29,8.5255]
[1743717506828,0.42648471,117.33,117.31,16.55170442]
[1743717507050,4.81489197,117.34,117.31,16.55170442]
[1743717508159,4.81489197,117.34,117.31,25.07540442]
[1743717508337,4.81489197,117.34,117.32,16.55170442]
[1743717508737,4.81489197,117.34,117.31,29.8347]
[1743717508738,4.81489197,117.34,117.31,25.07540442]
[1743717509531,0.42648471,117.33,117.31,8.5237]
[1743717509734,0.42648471,117.33,117.3,25.07640442]
[1743717510040,0.42648471,117.33,117.3,8.5247]
[1743717511560,0.42648471,117.33,117.3,25.07640442]
[1743717511741,4.81489197,117.34,117.3,25.07640442]
[1743717512049,0.42648471,117.33,117.3,25.07640442]
[1743717512655,0.42648471,117.33,117.31,16.55170442]
[1743717513265,4.81489197,117.34,117.3,74.73151768]
[1743717513563,4.81489197,117.34,117.33,16.55170442]
[1743717513749,4.81489197,117.34,117.31,6.3424]
[1743717513931,4.81489197,117.34,117.32,16.55170442]
[1743717514347,4.81489197,117.34,117.33,8.5229]
[1743717514537,4.81489197,117.34,117.33,25.07460442]
[1743717515338,5.09921511,117.34,117.33,25.07460442]
[1743717515551,4.81489197,117.34,117.33,10.1544]
[1743717515752,0.16390557,117.4,117.33,48.01350442]
[1743717516035,0.16390557,117.4,117.39,16.55170442]
[1743717516245,0.16390557,117.4,117.39,25.07030442]
[1743717516444,0.16390557,117.4,117.39,8.5186]
[1743717516667,0.16390557,117.4,117.38,8.5193]
[1743717516856,0.44822871,117.4,117.38,8.5193]
[1743717517034,0.44822871,117.4,117.37,25.07150442]
[1743717517354,0.16390557,117.4,117.37,25.07150442]
[1743717517560,0.44822871,117.4,117.37,8.5198]
[1743717517737,0.44822871,117.4,117.37,34.26173528]
[1743717518141,0.44822871,117.4,117.37,8.5198]
[1743717518345,0.44822871,117.4,117.37,25.74193528]
[1743717518560,0.44822871,117.4,117.36,25.74193528]
[1743717518932,0.44822871,117.4,117.37,25.74193528]
[1743717519136,0.44822871,117.4,117.35,8.5215]
[1743717519355,0.44822871,117.4,117.37,25.74193528]
[1743717519658,0.44822871,117.4,117.35,8.5215]
[1743717520038,0.44822871,117.4,117.37,25.74193528]
[1743717520371,0.44822871,117.4,117.35,29.8252]
[1743717520763,0.44822871,117.4,117.36,25.74193528]
[1743717521372,0.28432314,117.38,117.36,25.74193528]
[1743717521538,0.28432314,117.38,117.35,8.5215]
[1743717521867,0.28432314,117.38,117.36,25.74193528]
[1743717521868,17.60132314,117.38,117.36,25.74193528]
[1743717522239,17.60132314,117.38,117.37,25.74193528]
[1743717522545,17.60132314,117.38,117.37,34.26193528]
[1743717523460,17.317,117.38,117.37,34.26193528]
[1743717526358,17.317,117.38,117.37,8.52]
[1743717526561,17.317,117.38,117.37,34.26193528]
[1743717528065,17.317,117.38,117.37,8.52]
[1743717528246,17.317,117.38,117.37,34.26193528]
[1743717529357,17.317,117.38,117.35,29.8252]
[1743717529554,17.317,117.38,117.36,25.74193528]
[1743717530270,17.317,117.38,117.35,29.8252]
[1743717530459,17.317,117.38,117.36,25.74193528]
[1743717531151,17.317,117.38,117.37,25.74193528]
[1743717531473,17.317,117.38,117.37,34.26193528]
[1743717533074,17.317,117.38,117.37,8.52]
[1743717533284,17.317,117.38,117.37,34.26193528]
[1743717533572,17.317,117.38,117.37,8.52]
[1743717533767,17.317,117.38,117.37,34.26193528]
[1743717542177,17.317,117.38,117.37,8.52]
[1743717542355,17.317,117.38,117.37,34.26193528]
[1743717542550,17.317,117.38,117.37,8.52]
[1743717542754,0.14216157,117.37,117.31,29.8354]
[1743717542965,0.42648471,117.37,117.32,25.74193528]
[1743717543163,0.42648471,117.37,117.31,34.26633528]
[1743717543398,0.28432314,117.35,117.31,8.5244]
[1743717543557,46.16841999,117.33,117.28,7.5266]
[1743717543884,0.28432314,117.31,117.28,7.5266]
[1743717544086,0.42648471,117.32,117.28,33.26853528]
[1743717544258,0.42648471,117.32,117.29,25.74193528]
[1743717544462,0.28432314,117.32,117.3,8.5251]
[1743717544659,0.28432314,117.32,117.3,34.26703528]
[1743717544891,0.28432314,117.32,117.29,25.74193528]
[1743717545585,0.28432314,117.32,117.3,25.74193528]
[1743717545759,0.28432314,117.32,117.29,25.74193528]
[1743717546479,0.28432314,117.32,117.25,42.643]
[1743717546480,1.5806,117.34,117.3,34.26703528]
[1743717546671,1.5806,117.34,117.31,25.74193528]
[1743717546859,45.74193528,117.32,117.26,8.528]
[1743717547056,0.14216157,117.33,117.29,25.74193528]
[1743717547263,0.28432314,117.33,117.29,25.74193528]
[1743717547457,0.42648471,117.33,117.29,25.74193528]
[1743717547782,0.42648471,117.33,117.26,38.4681]
[1743717547975,0.42648471,117.33,117.29,25.74193528]
[1743717548163,0.14216157,117.33,117.3,25.74193528]
[1743717548364,45.20864886,117.36,117.3,25.74193528]
[1743717548365,26.559,117.36,117.32,34.26553528]
[1743717548569,0.14216157,117.37,117.33,25.74193528]